bitfinex/quotes_ETHUSD_20240707
["timestamp","ask_amount","ask_price","bid_price","bid_amount"]
[1720354064578,0.12420587,3021.9,3021.1,2.31703]
[1720354065223,0.12420587,3021.9,3021.3,2.31687]
[1720354065366,0.12420587,3021.9,3021.3,4.63369]
[1720354066065,0.12420587,3021.9,3021.4,2.31674]
[1720354066284,6.8807,3022.0,3021.4,2.31674]
[1720354066497,0.12420366,3021.8,3021.4,3.0]
[1720354066695,6.8807,3022.0,3021.4,2.31673]
[1720354066876,6.8807,3022.0,3021.4,5.31673]
[1720354067296,0.12421267,3021.9,3021.4,5.31674]
[1720354067677,6.8807,3022.0,3021.6,2.31664]
[1720354067997,6.8807,3022.0,3021.6,5.31664]
[1720354068616,0.08272656,3022.6,3021.6,5.31664]
[1720354068617,0.12426823,3021.9,3021.6,5.31664]
[1720354069202,6.8807,3022.3,3021.6,5.31664]
[1720354069741,0.12423739,3022.2,3021.6,5.31664]
[1720354069919,0.12423739,3022.2,3021.6,2.31664]
[1720354070226,6.8807,3022.3,3021.6,2.31664]
[1720354070586,0.12428777,3022.2,3022.1,2.31627]
[1720354070787,6.8807,3022.8,3022.2,2.31614]
[1720354070990,6.8807,3022.8,3022.3,2.31611]
[1720354072018,6.8807,3022.8,3022.5,2.31594]
[1720354072237,6.8807,3023.1,3022.6,2.31584]
[1720354072385,6.8807,3023.1,3022.5,2.31594]
[1720354072578,6.8807,3023.1,3022.6,2.31584]
[1720354072830,6.8807,3023.1,3022.6,5.31584]
[1720354078239,6.8807,3023.1,3022.6,2.31584]
[1720354078540,0.12050983,3023.0,3022.6,2.31584]
[1720354079333,0.12050983,3023.0,3022.6,4.63166]
[1720354079546,0.12050983,3023.0,3022.7,3.0]
[1720354079722,6.8807,3023.1,3022.7,3.0]
[1720354079921,0.12048891,3022.9,3022.7,5.3158]
[1720354080421,7.401,3023.8,3022.7,5.3158]
[1720354080617,0.08269521,3023.7,3022.7,5.3158]
[1720354080829,0.20336333,3023.7,3022.7,5.3158]
[1720354083250,0.20336333,3023.7,3022.7,3.0]
[1720354083251,7.401,3023.6,3022.7,3.0]
[1720354083424,0.08269528,3023.5,3022.6,2.31582]
[1720354083641,1.11386754,3023.5,3022.6,2.31582]
[1720354083841,1.11386754,3023.5,3023.0,0.2]
[1720354084541,7.401,3023.4,3023.0,0.2]
[1720354084735,7.52173605,3023.4,3023.0,0.2]
[1720354087431,7.52173605,3023.4,3023.0,0.4]
[1720354090029,7.68773605,3023.4,3023.0,0.4]
[1720354091589,7.68773605,3023.4,3023.0,0.6]
[1720354094553,7.401,3023.2,3023.0,0.6]
[1720354094761,7.60429553,3023.1,3023.0,0.6]
[1720354094942,8.36472508,3023.1,3022.3,1.62]
[1720354095147,7.60429553,3023.1,3022.3,1.62]
[1720354095379,7.52159522,3023.1,3022.3,1.98232982]
[1720354095554,7.52159522,3023.1,3022.4,2.31599]
[1720354095879,7.52159522,3023.1,3022.6,2.31582]
[1720354096178,0.12059522,3023.1,3022.8,2.31571]
[1720354096476,0.12059522,3023.1,3022.6,2.31582]
[1720354096658,0.12083867,3023.0,3022.7,2.31579]
[1720354097170,0.12081775,3022.9,3022.7,2.31579]
[1720354097370,0.12081775,3022.9,3022.4,2.31599]
[1720354097678,7.4728,3022.8,3022.4,4.63197]
[1720354097841,7.59361137,3022.8,3022.5,3.0]
[1720354098044,7.59361137,3022.8,3022.5,2.31595]
[1720354098664,7.59361137,3022.8,3022.3,1.62]
[1720354098868,7.59361137,3022.8,3022.4,2.31601]
[1720354099057,7.59361137,3022.8,3022.5,2.31595]
[1720354099259,7.59361137,3022.8,3022.5,5.31595]
[1720354099871,7.59361137,3022.8,3022.5,3.0]
[1720354100075,7.59361137,3022.8,3022.3,5.31605]
[1720354100678,7.59361137,3022.8,3022.3,3.0]
[1720354100985,7.59361137,3022.8,3022.3,5.31606]
[1720354101150,0.84207064,3022.7,3022.4,3.0]
[1720354101350,7.59367421,3022.6,3021.8,3.32643]
[1720354101551,7.59367421,3022.6,3021.9,2.31636]
[1720354101752,7.4728,3022.6,3021.9,2.31636]
[1720354102046,0.12086103,3022.5,3021.9,2.31636]
[1720354102484,0.12086103,3022.5,3021.6,7.0533]
[1720354102789,0.12086103,3022.5,3022.3,2.31611]
[1720354103284,7.4728,3022.9,3022.3,4.63217]
[1720354103454,0.12086301,3022.4,3022.3,4.63217]
[1720354103651,7.4728,3022.9,3022.4,2.31603]
[1720354103848,7.4728,3022.9,3022.4,5.31603]
[1720354104174,7.4728,3022.9,3022.5,2.31596]
[1720354104383,7.4728,3023.3,3022.5,3.0]
[1720354104581,7.4728,3023.3,3022.8,2.31566]
[1720354104893,0.1209082,3023.2,3022.8,2.31566]
[1720354105188,7.4728,3023.3,3022.8,5.31566]
[1720354105494,0.1209159,3023.1,3022.9,2.31564]
[1720354105673,0.1209368,3023.2,3022.9,5.31564]
[1720354105848,0.12079807,3023.0,3022.9,2.31564]
[1720354106050,7.4728,3023.3,3022.9,2.31564]
[1720354106681,0.12082798,3023.2,3022.9,2.31564]
[1720354106883,7.4728,3023.3,3022.9,2.31564]
[1720354107367,0.12073909,3023.2,3022.9,2.31564]
[1720354107683,7.4728,3023.3,3022.9,2.31564]
[1720354108089,0.12073816,3023.2,3022.9,2.31564]
[1720354108592,0.1207832,3023.1,3022.9,2.31564]
[1720354108978,7.4728,3023.3,3022.9,2.31564]
[1720354109292,0.12085427,3023.0,3022.9,2.31564]
[1720354109597,0.12082133,3023.0,3022.9,2.31564]
[1720354110099,7.4728,3023.3,3022.9,2.31564]
[1720354110294,0.12082133,3023.0,3022.9,2.31564]
[1720354110454,7.4728,3023.3,3022.9,2.31564]
[1720354110853,0.12086315,3023.2,3022.9,2.31564]
[1720354111295,7.4728,3023.3,3022.9,2.31564]
[1720354111454,7.4728,3023.3,3022.9,4.63124]
[1720354111883,0.12096898,3023.2,3022.9,4.63124]
[1720354112282,7.4728,3023.3,3023.0,2.31557]
[1720354112488,0.12095998,3023.1,3023.0,2.31557]
[1720354112673,0.166,3023.4,3023.0,5.31557]
[1720354113185,0.12100394,3023.3,3023.0,5.31557]
[1720354115536,0.12100394,3023.3,3023.2,2.31542]
[1720354115876,0.12100394,3023.3,3023.2,5.31542]
[1720354116495,0.12100394,3023.3,3023.2,6.9982898]
[1720354117224,0.166,3023.4,3023.2,4.6828698]
[1720354117535,0.166,3023.4,3023.3,6.3135698]
[1720354117833,0.166,3023.4,3023.3,9.3135698]
[1720354119025,0.166,3023.4,3023.3,3.0]
[1720354119191,0.166,3023.4,3023.2,2.31539]
[1720354119394,0.166,3023.4,3023.2,5.31539]
[1720354120189,0.166,3023.4,3023.2,3.0]
[1720354120492,0.166,3023.4,3023.1,2.31545]
[1720354121522,0.166,3023.4,3023.2,9.43585]
[1720354121685,0.166,3023.4,3023.3,3.0]
[1720354122185,0.166,3023.4,3023.3,2.31535]
[1720354122408,0.166,3023.4,3023.3,5.31535]
[1720354122783,0.166,3023.4,3023.3,2.31535]
[1720354123184,0.166,3023.4,3023.3,4.6307]
[1720354123425,0.166,3023.4,3023.3,7.6307]
[1720354123579,0.166,3023.4,3023.3,9.31343599]
[1720354124603,7.1735,3024.1,3023.7,2.31499]
[1720354126315,7.1735,3024.1,3023.8,2.31495]
[1720354126511,7.1735,3024.1,3023.8,5.31495]
[1720354126726,7.1735,3024.1,3023.8,3.0]
[1720354126906,7.1735,3024.1,3023.7,4.63001]
[1720354127113,7.1735,3024.1,3023.8,3.0]
[1720354127352,7.1735,3024.1,3023.7,4.62998]
[1720354127507,7.1735,3024.1,3023.8,5.31496]
[1720354127703,7.1735,3024.1,3023.9,3.0]
[1720354128336,7.1735,3024.1,3023.8,5.31496]
[1720354129206,7.1735,3024.1,3023.9,3.0]
[1720354129418,7.1735,3024.1,3023.6,5.31507]
[1720354129816,7.1735,3024.1,3023.6,2.31507]
[1720354131640,7.1735,3024.1,3023.6,2.31506]
[1720354131943,7.1735,3024.1,3023.7,2.31503]
[1720354132117,7.1735,3024.1,3023.7,5.31503]
[1720354133514,7.1735,3024.1,3023.7,3.0]
[1720354133720,7.1735,3024.1,3023.5,5.31518]
[1720354133926,7.1735,3024.1,3023.6,2.3151]
[1720354134243,7.1735,3024.1,3023.6,5.3151]
[1720354134431,7.1735,3024.1,3023.6,2.3151]
[1720354134806,7.1735,3024.1,3023.5,3.0]
[1720354135050,7.1735,3024.1,3023.4,4.63044]
[1720354135228,7.1735,3024.1,3023.5,5.31519]
[1720354135434,7.1735,3024.1,3023.5,2.31519]
[1720354135615,7.1735,3024.1,3023.5,5.31519]
[1720354138505,7.1735,3024.1,3023.5,2.31519]
[1720354140511,7.1735,3024.1,3023.3,5.3153]
[1720354140717,7.1735,3024.1,3023.3,2.31532]
[1720354141249,7.1735,3024.1,3023.4,2.31525]
[1720354141551,7.1735,3024.1,3023.4,5.31525]
[1720354143154,0.11585236,3024.0,3023.4,5.31525]
[1720354143447,0.11585236,3024.0,3023.2,5.31536]
[1720354143654,7.3374,3023.9,3023.2,5.31536]
[1720354144071,0.11581055,3023.8,3023.2,5.31536]
[1720354144375,0.11581055,3023.8,3023.3,2.31533]
[1720354144575,0.11581055,3023.8,3023.3,4.63066]
[1720354144770,0.11581055,3023.8,3023.4,3.0]
[1720354145075,0.11581055,3023.8,3023.4,5.31526]
[1720354145368,7.3374,3023.9,3023.4,5.31526]
[1720354146171,7.3374,3023.9,3023.6,2.31509]
[1720354146880,7.3374,3023.9,3023.6,4.63016]
[1720354147045,5.5761,3025.0,3023.7,5.31503]
[1720354147046,7.3374,3024.2,3023.7,5.31503]
[1720354147433,0.11587987,3024.1,3023.7,5.31503]
[1720354147666,7.3374,3024.2,3023.7,5.31503]
[1720354147860,7.3374,3024.2,3023.8,2.31495]
[1720354148434,7.3374,3024.2,3023.9,2.31488]
[1720354148664,7.3374,3024.2,3023.9,5.31488]
[1720354148868,7.3374,3024.2,3023.9,2.31488]
[1720354150266,7.3374,3024.2,3023.9,2.48088]
[1720354150974,7.3374,3024.2,3023.9,2.48083]
[1720354151275,7.3374,3024.9,3024.1,2.31473]
[1720354151455,7.3374,3024.7,3024.1,2.31473]
[1720354151972,0.11588856,3024.6,3024.1,2.31473]
[1720354152953,0.11588856,3024.6,3024.1,1.84473]
[1720354156133,0.11588856,3024.6,3024.2,2.31465]
[1720354156350,7.3374,3024.7,3024.2,2.31465]
[1720354156774,7.3374,3024.7,3024.3,2.31457]
[1720354158070,7.3374,3024.7,3024.3,4.62908]
[1720354158276,7.3374,3024.7,3024.4,3.0]
[1720354158573,7.0775,3024.9,3024.4,3.0]
[1720354158737,0.11624823,3024.8,3024.5,2.31442]
[1720354159837,7.0775,3025.1,3024.5,2.31442]
[1720354160060,0.11629033,3024.7,3024.5,2.31442]
[1720354160276,7.0775,3025.1,3024.5,2.31442]
[1720354160438,0.11626943,3024.6,3024.5,2.31442]
[1720354160639,7.0775,3025.1,3024.5,2.31442]
[1720354160838,0.11626943,3024.6,3024.5,2.31442]
[1720354161064,7.0775,3025.1,3024.5,2.31442]
[1720354161252,0.11626943,3024.6,3024.5,2.31442]
[1720354161459,7.0775,3025.1,3024.5,2.31442]
[1720354161666,0.11630356,3024.6,3024.5,2.31442]
[1720354161866,7.0775,3025.1,3024.5,2.31442]
[1720354162072,0.11630356,3024.6,3024.5,2.31442]
[1720354162378,0.11630618,3024.6,3024.5,2.31442]
[1720354162539,7.0775,3025.1,3024.5,2.31442]
[1720354162735,0.11638976,3025.0,3024.5,2.31442]
[1720354163475,0.11638976,3025.0,3024.5,4.6288]
[1720354163680,0.11638976,3025.0,3024.6,3.0]
[1720354163879,7.0775,3025.1,3024.6,3.0]
[1720354166381,7.0775,3025.1,3024.5,5.31438]
[1720354166679,7.0775,3025.1,3024.6,3.0]
[1720354166878,7.0775,3025.1,3024.4,3.0]
[1720354167069,0.08264517,3025.0,3024.3,4.62905]
[1720354167274,0.08264517,3025.0,3024.4,3.0]
[1720354168082,0.08264517,3025.0,3024.3,5.31451]
[1720354168386,7.4236,3024.9,3024.3,3.0]
[1720354168695,0.11569809,3024.8,3024.2,5.68115403]
[1720354169070,0.11569809,3024.8,3024.2,5.31465]
[1720354170691,0.11569809,3024.8,3024.3,2.31458]
[1720354170862,0.11569809,3024.8,3024.3,5.31458]
[1720354171402,0.11569809,3024.8,3024.3,2.31458]
[1720354172754,0.11569809,3024.8,3024.5,2.51442]
[1720354173084,0.11569809,3024.8,3024.6,3.0]
[1720354173662,0.11569809,3024.8,3024.5,0.2]
[1720354174066,7.4236,3024.7,3024.4,1.22]
[1720354174358,0.11575609,3024.6,3024.1,2.67774647]
[1720354174555,7.4236,3024.7,3024.1,2.31469]
[1720354175688,7.4236,3024.7,3024.2,2.31465]
[1720354176012,7.4236,3024.7,3024.3,4.62902]
[1720354176962,7.259,3025.3,3024.4,2.31448]
[1720354177162,0.11583541,3025.2,3024.4,2.31448]
[1720354177662,0.19848287,3025.2,3024.5,2.3144]
[1720354180263,7.259,3025.1,3024.5,2.3144]
[1720354180691,0.11572723,3025.0,3024.5,2.3144]
[1720354182612,0.11572723,3025.0,3024.5,4.62878]
[1720354182785,0.11572723,3025.0,3024.6,2.31434]
[1720354184489,0.11572723,3025.0,3024.7,2.31425]
[1720354184688,0.11572723,3025.0,3024.7,5.31425]
[1720354185021,7.259,3025.1,3024.7,5.31425]
[1720354185200,7.259,3025.1,3024.7,2.31425]
[1720354186519,7.259,3025.7,3024.7,2.31425]
[1720354186816,3.0,3025.8,3024.7,2.31425]
[1720354186817,7.259,3025.5,3024.7,2.31425]
[1720354187124,0.19856007,3025.4,3024.7,2.31425]
[1720354187820,7.259,3025.3,3024.7,2.31425]
[1720354188025,0.11587793,3025.2,3024.6,3.0]
[1720354188199,7.259,3025.1,3024.5,2.31437]
[1720354188406,0.11575666,3025.0,3024.5,2.31437]
[1720354189823,0.11575666,3025.0,3024.5,4.62873]
[1720354190041,0.11575666,3025.0,3024.6,3.0]
[1720354190408,0.11575666,3025.0,3024.5,2.31436]
[1720354192927,7.259,3024.9,3024.4,3.0]
[1720354193095,7.259,3024.9,3024.1,2.3147]
[1720354193295,0.10817694,3024.8,3024.2,1.68217265]
[1720354193490,0.10817694,3024.8,3024.2,4.68217265]
[1720354193727,7.259,3025.3,3024.3,1.68217265]
[1720354193946,7.34164939,3025.3,3024.3,4.68217265]
[1720354194107,7.259,3025.1,3024.3,3.0]
[1720354194310,7.259,3024.9,3024.2,5.31465]
[1720354194510,7.259,3024.9,3024.3,1.68217513]
[1720354194714,7.259,3024.7,3024.3,4.68217513]
[1720354195065,0.10816684,3024.6,3024.2,3.0]
[1720354195400,0.10816684,3024.6,3024.3,1.68225844]
[1720354195699,0.10816684,3024.6,3024.2,3.0]
[1720354196017,0.10816684,3024.6,3024.3,1.68219966]
[1720354197194,0.10816684,3024.6,3024.3,3.99675966]
[1720354197394,0.10816684,3024.6,3024.4,4.68219966]
[1720354197725,0.10816684,3024.6,3024.5,3.0]
[1720354197899,0.10816684,3024.6,3024.3,2.31456]
[1720354198099,0.10816684,3024.6,3024.4,1.68219097]
[1720354198299,0.10816684,3024.6,3024.4,4.68219097]
[1720354198527,0.10816684,3024.6,3024.4,3.0]
[1720354198848,0.10816684,3024.6,3024.3,2.31456]
[1720354198996,7.4049,3024.9,3024.4,1.68218848]
[1720354199196,0.10828088,3024.8,3024.4,4.68218848]
[1720354199408,0.10828088,3024.8,3024.5,1.68217965]
[1720354199729,0.10828088,3024.8,3024.5,4.68217965]
[1720354199907,0.10828088,3024.8,3024.5,2.31443]
[1720354200246,0.10828088,3024.8,3024.6,1.68216534]
[1720354200419,7.4049,3025.1,3024.6,1.68216534]
[1720354200420,7.4049,3025.1,3024.6,3.99650534]
[1720354200730,0.10846126,3025.0,3024.7,1.68216534]
[1720354206955,0.10846126,3025.0,3024.5,2.31438]
[1720354207143,0.10846126,3025.0,3024.9,0.2]
[1720354208772,0.10846126,3025.0,3024.9,4.82824]
[1720354209061,7.4049,3025.5,3025.1,2.31393]
[1720354209226,7.4049,3025.5,3025.2,3.99585554]
[1720354209426,7.4049,3025.5,3025.2,2.31387]
[1720354209729,7.4049,3025.5,3024.9,5.51405]
[1720354210059,0.08263126,3025.4,3025.0,4.68174197]
[1720354210263,7.4049,3025.3,3025.1,1.68174197]
[1720354210426,7.4049,3025.3,3024.9,0.2]
[1720354210776,7.4049,3025.3,3024.7,2.90185362]
[1720354211076,7.4049,3025.3,3024.8,2.31415]
[1720354211225,7.4049,3025.3,3024.9,0.2]
[1720354212708,7.4049,3025.3,3024.9,2.51411]
[1720354213000,7.4049,3025.3,3025.0,3.0]
[1720354213154,7.4049,3025.3,3024.9,2.51411]
[1720354213357,7.4049,3025.3,3025.0,5.314]
[1720354214259,7.4049,3025.3,3025.1,2.31392]
[1720354215914,7.4373,3025.7,3025.2,2.31389]
[1720354216114,7.4373,3025.7,3025.4,2.31374]
[1720354216318,0.10884385,3025.6,3025.4,2.31374]
[1720354217715,0.10884385,3025.6,3025.5,2.31366]
[1720354217923,0.10884385,3025.6,3025.5,5.31366]
[1720354218083,7.4373,3026.2,3025.6,2.31352]
[1720354218282,7.4373,3026.2,3025.6,5.31352]
[1720354218683,7.4373,3026.2,3025.7,2.31351]
[1720354219681,0.10911507,3026.1,3025.7,2.31351]
[1720354220031,7.4373,3026.2,3025.6,3.0]
[1720354220333,7.4373,3026.2,3025.5,2.31359]
[1720354220334,7.4373,3025.9,3025.5,2.31359]
[1720354220827,0.10905244,3025.8,3025.5,2.31359]
[1720354221505,0.10905244,3025.8,3025.5,2.31362]
[1720354221709,0.10905244,3025.8,3025.6,2.31358]
[1720354221892,7.4373,3025.9,3025.6,3.0]
[1720354222220,7.4373,3025.9,3025.4,5.31369]
[1720354222385,7.4373,3025.9,3025.4,2.31369]
[1720354224285,7.4373,3025.7,3025.3,3.0]
[1720354224486,7.4373,3025.7,3025.2,2.31385]
[1720354224715,0.10903981,3025.6,3025.2,2.31385]
[1720354227027,0.10903981,3025.6,3025.1,3.0]
[1720354228131,7.4373,3025.7,3025.1,5.31394]
[1720354228335,7.4373,3025.7,3025.1,3.0]
[1720354228532,7.4373,3025.7,3025.1,5.31397]
[1720354229156,7.4373,3025.7,3025.1,3.0]
[1720354229362,7.4373,3025.7,3025.0,5.67837035]
[1720354229653,7.4373,3025.7,3025.1,2.31396]
[1720354229960,7.4373,3025.7,3025.1,5.31396]
[1720354231286,7.4373,3025.7,3025.0,3.0]
[1720354231520,7.4373,3025.7,3025.0,5.31403]
[1720354234063,7.51993021,3025.6,3025.0,5.31403]
[1720354234263,0.17136682,3025.5,3025.0,5.31403]
[1720354234798,0.17136682,3025.5,3025.1,2.31397]
[1720354235669,0.17136682,3025.5,3025.1,4.62788]
[1720354235995,0.17136682,3025.5,3025.2,3.0]
[1720354236496,0.17136682,3025.5,3025.1,2.31391]
[1720354236721,0.17136682,3025.5,3025.3,2.31377]
[1720354238107,0.17136682,3025.5,3025.2,3.0]
[1720354238296,0.17136682,3025.5,3025.3,2.31375]
[1720354240285,7.2252,3025.4,3025.2,3.0]
[1720354240495,0.17132939,3025.3,3025.1,2.31392]
[1720354243635,0.17132939,3025.3,3025.0,3.0]
[1720354243983,7.2252,3025.4,3025.0,3.0]
[1720354244223,7.2252,3025.4,3025.0,5.31404]
[1720354244521,7.2252,3025.8,3025.1,2.31396]
[1720354244739,0.0826313,3025.7,3025.1,2.31396]
[1720354244879,0.25401746,3025.7,3025.1,2.31396]
[1720354246013,7.2252,3025.6,3025.0,3.0]
[1720354246222,7.2252,3025.4,3024.9,0.8]
[1720354246422,7.2252,3025.2,3024.9,0.8]
[1720354246716,7.2252,3025.0,3024.9,0.8]
[1720354247083,7.395734,3025.0,3024.9,0.8]
[1720354253640,7.395734,3025.0,3024.4,3.0]
[1720354253799,0.08265483,3024.9,3024.3,5.31453]
[1720354254242,0.17049635,3024.8,3024.3,5.31453]
[1720354254535,7.30785847,3024.7,3024.2,3.0]
[1720354254835,7.30785847,3024.7,3024.0,3.0]
[1720354255042,7.0042,3024.5,3023.9,0.52078341]
[1720354255193,7.0042,3024.3,3023.9,0.166]
[1720354255387,0.08267182,3024.2,3023.9,0.166]
[1720354255590,0.25266028,3024.2,3023.9,0.166]
[1720354255897,0.16978023,3024.1,3023.9,0.166]
[1720354258029,0.08267182,3024.2,3023.9,0.166]
[1720354258219,7.0042,3024.3,3023.9,0.166]
[1720354258730,0.16865271,3024.2,3023.9,0.166]
[1720354258894,0.16865271,3024.2,3023.9,2.48082]
[1720354259094,7.0042,3024.5,3023.9,5.48082]
[1720354259335,0.16860821,3024.4,3023.9,5.48082]
[1720354259707,0.25127188,3024.4,3023.9,2.48082]
[1720354260316,0.16860821,3024.4,3023.9,4.79565]
[1720354260624,0.2512719,3024.4,3023.9,2.48082]
[1720354261634,0.2512719,3024.4,3023.9,4.79565]
[1720354261842,0.16860821,3024.4,3024.2,2.31459]
[1720354262130,7.0042,3024.7,3024.1,2.31469]
[1720354262333,0.16861854,3024.3,3024.1,2.31469]
[1720354262526,7.0042,3024.7,3024.2,2.31461]
[1720354263334,0.08265645,3024.6,3024.0,2.31477]
[1720354263528,7.0042,3024.5,3024.0,2.31477]
[1720354264302,0.08266379,3024.4,3023.9,0.166]
[1720354264501,7.0042,3024.3,3023.9,0.166]
[1720354264731,0.16859971,3024.2,3023.9,0.166]
[1720354264901,7.0042,3024.5,3023.9,2.48083]
[1720354265106,0.16858087,3024.1,3024.0,2.31481]
[1720354265314,7.3242,3024.9,3024.2,2.31462]
[1720354265602,7.3242,3024.9,3024.4,2.31446]
[1720354268710,2.5761,3025.8,3024.7,2.31426]
[1720354268711,7.3242,3025.2,3024.7,2.31426]
[1720354270236,7.3242,3025.2,3024.9,0.2]
[1720354270653,7.3242,3025.6,3025.0,2.31399]
[1720354270926,7.40683601,3025.6,3025.0,2.31399]
[1720354272261,7.3242,3025.6,3025.1,2.31397]
[1720354273068,7.3242,3026.0,3025.3,2.31377]
[1720354273362,7.3242,3026.4,3025.5,2.31361]
[1720354273514,0.96504319,3026.3,3025.5,2.31361]
[1720354273714,0.08262319,3026.2,3025.5,2.31361]
[1720354275151,0.08262319,3026.2,3025.5,4.62723]
[1720354276028,0.08262319,3026.2,3025.6,2.31357]
[1720354277210,0.08262311,3026.3,3025.7,2.31349]
[1720354277528,0.16954796,3026.2,3025.8,2.31341]
[1720354277729,7.3242,3026.4,3025.8,2.31341]
[1720354277924,0.08261716,3026.3,3025.6,2.31352]
[1720354278131,0.16954796,3026.2,3025.2,2.31386]
[1720354278315,0.16954796,3026.2,3025.2,5.31386]
[1720354278514,0.16954796,3026.2,3025.6,2.31354]
[1720354278849,0.16954796,3026.2,3025.7,2.31349]
[1720354279431,0.16954796,3026.2,3025.5,2.31359]
[1720354279630,0.16954796,3026.2,3025.7,2.31346]
[1720354281386,0.16954796,3026.2,3025.8,2.31342]
[1720354281845,7.3242,3026.4,3025.8,2.31342]
[1720354282046,0.16957151,3026.1,3025.8,2.31342]
[1720354282260,7.3242,3026.4,3025.8,2.31342]
[1720354282748,0.16962237,3026.3,3025.9,2.31334]
[1720354284054,0.16962237,3026.3,3025.9,4.62665]
[1720354284655,0.16962237,3026.3,3026.0,2.31326]
[1720354284830,7.2497,3026.7,3026.0,2.31326]
[1720354285227,0.16997533,3026.6,3026.0,2.31326]
[1720354285649,0.16997533,3026.6,3026.1,2.31318]
[1720354286226,0.2525798,3026.6,3025.9,4.62664]
[1720354286571,0.2525798,3026.6,3025.9,2.3133]
[1720354287537,7.2497,3026.5,3025.8,3.0]
[1720354287747,0.16993771,3026.4,3025.5,3.3632788]
[1720354287938,0.25254647,3026.4,3025.8,2.31338]
[1720354288435,0.25254647,3026.4,3025.8,5.31338]
[1720354288630,0.25254647,3026.4,3025.8,2.31338]
[1720354290162,0.16993771,3026.4,3025.9,2.31334]
[1720354290537,0.08260997,3026.7,3025.9,2.31334]
[1720354290763,0.16998592,3026.6,3026.0,2.31327]
[1720354293247,0.16998592,3026.6,3026.0,4.6265]
[1720354293650,0.16998592,3026.6,3026.2,2.31312]
[1720354294152,7.360666,3026.8,3026.2,2.31312]
[1720354294153,0.16999358,3026.5,3026.2,2.31312]
[1720354294354,7.360666,3026.8,3026.2,2.31312]
[1720354294669,0.1700312,3026.7,3026.2,2.31312]
[1720354296079,0.1700312,3026.7,3026.2,2.31305]
[1720354296245,0.1700312,3026.7,3026.4,2.31293]
[1720354296445,7.360666,3026.8,3026.4,2.31293]
[1720354296748,0.1702038,3026.7,3026.4,2.31293]
[1720354297063,7.360666,3026.8,3026.4,2.31293]
[1720354297281,7.3368,3027.7,3026.8,2.31265]
[1720354297572,0.08258202,3027.6,3027.0,2.31251]
[1720354298142,0.08258202,3027.6,3027.0,4.62497]
[1720354298476,7.3368,3027.7,3027.0,2.31246]
[1720354299666,7.3368,3027.7,3027.2,2.31234]
[1720354300060,0.08257743,3027.6,3027.0,4.62492]
[1720354300263,0.08257743,3027.6,3027.1,2.31243]
[1720354300474,0.08257743,3027.6,3027.5,0.2]
[1720354300957,7.41937743,3027.6,3027.5,0.2]
[1720354301359,8.91937743,3027.6,3027.5,0.2]
[1720354304573,8.91937743,3027.6,3027.5,0.4]
[1720354305078,7.41937743,3027.6,3027.5,0.566]
[1720354308664,7.41937743,3027.6,3027.5,0.766]
[1720354308853,7.3368,3027.6,3027.5,0.766]
[1720354309874,7.50176602,3027.6,3027.5,0.766]
[1720354311574,9.90194262,3027.6,3027.5,0.766]
[1720354312664,9.90194262,3027.6,3027.5,0.966]
[1720354314542,13.38594262,3027.6,3027.5,0.966]
[1720354314873,13.93594262,3027.6,3027.5,0.966]
[1720354315549,7.0943,3026.9,3026.3,3.0]
[1720354315766,0.08260414,3026.8,3026.3,3.0]
[1720354316077,0.08260414,3026.8,3026.0,5.31325]
[1720354316078,0.24743828,3026.8,3026.0,5.31325]
[1720354316272,0.08260414,3026.7,3026.0,5.31325]
[1720354317174,0.08260415,3026.8,3026.0,5.31325]
[1720354320269,0.08260415,3026.8,3026.0,5.31323]
[1720354322614,1.58260415,3026.8,3026.0,3.0]
[1720354322788,7.17690868,3026.7,3025.8,3.0]
[1720354322960,7.3412404,3026.7,3025.8,5.31343]
[1720354324191,7.0943,3026.3,3025.4,2.31371]
[1720354324399,0.08261935,3026.2,3025.4,2.31371]
[1720354324692,0.24681999,3026.2,3025.4,2.31371]
[1720354324989,0.24681999,3026.2,3025.4,4.6274]
[1720354325478,0.24681999,3026.2,3025.5,3.0]
[1720354325798,0.16420064,3026.2,3025.8,2.31338]
[1720354325995,0.16420064,3026.2,3025.8,5.31338]
[1720354326293,0.08261063,3026.6,3025.8,5.31338]
[1720354326496,0.16403627,3026.1,3025.8,5.31338]
[1720354326662,0.08261063,3026.6,3025.8,5.31338]
[1720354326991,0.1641115,3026.5,3025.8,5.31338]
[1720354327400,7.0943,3026.3,3025.8,3.0]
[1720354327597,0.08261398,3026.2,3025.6,3.0]
[1720354327767,0.24666906,3026.2,3025.4,5.31372]
[1720354328290,7.0943,3026.1,3025.4,5.31372]
[1720354328488,7.0943,3026.1,3025.3,2.31376]
[1720354328489,0.08262257,3026.0,3024.9,2.31411]
[1720354328667,0.24664532,3026.0,3025.1,0.05755718]
[1720354328862,0.24664532,3026.0,3025.0,2.31399]
[1720354329197,0.24664532,3026.0,3025.1,2.3139]
[1720354330018,0.24664532,3026.0,3025.1,5.3139]
[1720354331611,0.08262257,3026.0,3025.1,5.3139]
[1720354334097,0.08262257,3026.0,3025.2,2.31389]
[1720354334296,0.08262257,3026.0,3025.2,5.31389]
[1720354334774,0.08262257,3026.0,3025.2,2.31389]
[1720354334977,0.16386098,3025.9,3025.2,2.31389]
[1720354335199,0.08263181,3025.8,3025.2,2.31389]
[1720354335395,0.24647397,3025.8,3025.2,2.31389]
[1720354335922,7.0296,3025.7,3025.2,2.31389]
[1720354336127,7.19342335,3025.7,3025.2,2.31389]
[1720354337214,7.19342335,3025.7,3025.2,4.62772]
[1720354337394,7.19342335,3025.7,3025.3,3.0]
[1720354337826,7.0296,3025.7,3025.3,3.0]
[1720354338123,0.16380453,3025.6,3025.3,3.0]